[Event "Early-Titled-Tuesday-Blitz-June-18-2024"]
[Site "Chess.com"]
[Date "2024.06.18"]
[Round "9"]
[White "HanSchut"]
[Black "Andrey-Ivanov2011"]
[Result "0-1"]
[WhiteElo "2223"]
[BlackElo "2090"]
[TimeControl "180+1"]
[EndTime "9:47:48 PDT"]
[Termination "Andrey-Ivanov2011 won by checkmate"]

1. e4 {[%clk 0:03:00.9]} 1... c5 {[%clk 0:02:58.5]} 2. Nf3 {[%clk 0:03:00.9]}
2... d6 {[%clk 0:02:57.3]} 3. d4 {[%clk 0:03:01.3]} 3... cxd4 {[%clk 0:02:58.1]}
4. Nxd4 {[%clk 0:03:01.8]} 4... Nf6 {[%clk 0:02:58.8]} 5. f3 {[%clk 0:03:02.4]}
5... e5 {[%clk 0:02:56.6]} 6. Bb5+ {[%clk 0:03:02.2]} 6... Nbd7 {[%clk
0:02:55.6]} 7. Nf5 {[%clk 0:03:02.1]} 7... d5 {[%clk 0:02:55.1]} 8. exd5 {[%clk
0:03:03]} 8... a6 {[%clk 0:02:55.1]} 9. Ba4 {[%clk 0:03:03.1]} 9... b5 {[%clk
0:02:54.8]} 10. Bb3 {[%clk 0:03:03.7]} 10... Nc5 {[%clk 0:02:55.3]} 11. Ne3
{[%clk 0:03:04.1]} 11... Bd6 {[%clk 0:02:55.6]} 12. Nc3 {[%clk 0:03:01.6]} 12...
O-O {[%clk 0:02:55.9]} 13. O-O {[%clk 0:03:01]} 13... e4 {[%clk 0:02:56.2]} 14.
Nxe4 {[%clk 0:02:49.6]} 14... Ncxe4 {[%clk 0:02:57.1]} 15. fxe4 {[%clk
0:02:49.8]} 15... Nxe4 {[%clk 0:02:57.6]} 16. Qf3 {[%clk 0:02:40.4]} 16... Qh4
{[%clk 0:02:55.1]} 17. g3 {[%clk 0:02:27.7]} 17... Qe7 {[%clk 0:02:24.5]} 18.
Nf5 {[%clk 0:02:03.7]} 18... Bxf5 {[%clk 0:02:18.9]} 19. Qxf5 {[%clk 0:02:04.6]}
19... Bxg3 {[%clk 0:02:14.5]} 20. hxg3 {[%clk 0:01:56.5]} 20... Nxg3 {[%clk
0:02:11.6]} 21. Qf3 {[%clk 0:01:51.5]} 21... Nxf1 {[%clk 0:02:09.8]} 22. Kxf1
{[%clk 0:01:46.3]} 22... Rfe8 {[%clk 0:02:05.3]} 23. Bd2 {[%clk 0:01:44.4]}
23... Qd6 {[%clk 0:02:01.4]} 24. Re1 {[%clk 0:01:39.1]} 24... a5 {[%clk
0:01:57.4]} 25. Rxe8+ {[%clk 0:01:30.2]} 25... Rxe8 {[%clk 0:01:57.6]} 26. Bxa5
{[%clk 0:01:28]} 26... b4 {[%clk 0:01:57.7]} 27. a3 {[%clk 0:01:13.7]} 27...
Qa6+ {[%clk 0:01:55.7]} 28. Qd3 {[%clk 0:00:50.9]} 28... Qxa5 {[%clk 0:01:50.7]}
29. d6 {[%clk 0:00:51.2]} 29... bxa3 {[%clk 0:01:33.4]} 30. d7 {[%clk
0:00:20.5]} 30... Qe1+ {[%clk 0:01:27.8]} 31. Kg2 {[%clk 0:00:20.7]} 31... Re2+
{[%clk 0:01:25.9]} 32. Kh3 {[%clk 0:00:11.1]} 32... Qh1+ {[%clk 0:01:10.6]} 33.
Kg4 {[%clk 0:00:10.8]} 33... Qg2+ {[%clk 0:00:53.1]} 34. Kf4 {[%clk 0:00:09.7]}
34... Qf2+ {[%clk 0:00:52.1]} 35. Kg4 {[%clk 0:00:09.5]} 35... Qg1+ {[%clk
0:00:48.8]} 36. Qg3 {[%clk 0:00:07]} 36... Qd4+ {[%clk 0:00:28.3]} 37. Qf4
{[%clk 0:00:05.2]} 37... Qxd7+ {[%clk 0:00:18.5]} 38. Kf3 {[%clk 0:00:04.8]}
38... Re8 {[%clk 0:00:13.7]} 39. bxa3 {[%clk 0:00:04.4]} 39... h6 {[%clk
0:00:13.6]} 40. a4 {[%clk 0:00:04.4]} 40... Qb7+ {[%clk 0:00:13.1]} 41. Kf2
{[%clk 0:00:04.2]} 41... Qb6+ {[%clk 0:00:12.7]} 42. Kg2 {[%clk 0:00:04]} 42...
Qg6+ {[%clk 0:00:12]} 43. Kf2 {[%clk 0:00:04.3]} 43... Qf6 {[%clk 0:00:09.5]}
44. Qxf6 {[%clk 0:00:04.2]} 44... gxf6 {[%clk 0:00:10.4]} 45. Bc4 {[%clk
0:00:02.7]} 45... Kf8 {[%clk 0:00:09.6]} 46. a5 {[%clk 0:00:02.7]} 46... Ra8
{[%clk 0:00:09.5]} 47. a6 {[%clk 0:00:03]} 47... Ke7 {[%clk 0:00:10]} 48. Bd3
{[%clk 0:00:03.3]} 48... Ke6 {[%clk 0:00:08.8]} 49. Kf3 {[%clk 0:00:03.8]} 49...
Ke5 {[%clk 0:00:09.1]} 50. Kg4 {[%clk 0:00:04.2]} 50... f5+ {[%clk 0:00:07.8]}
51. Kf3 {[%clk 0:00:02.7]} 51... f6 {[%clk 0:00:07.3]} 52. Kf2 {[%clk
0:00:03.2]} 52... h5 {[%clk 0:00:04.7]} 53. Kf3 {[%clk 0:00:03.8]} 53... Ra7
{[%clk 0:00:02.3]} 54. Kg3 {[%clk 0:00:04]} 54... f4+ {[%clk 0:00:02.7]} 55. Kf3
{[%clk 0:00:04.3]} 55... f5 {[%clk 0:00:03.6]} 56. Kf2 {[%clk 0:00:04.5]} 56...
h4 {[%clk 0:00:02.6]} 57. Kg2 {[%clk 0:00:04.8]} 57... Ra8 {[%clk 0:00:03.4]}
58. Kh3 {[%clk 0:00:05.1]} 58... Ra7 {[%clk 0:00:04.3]} 59. Kxh4 {[%clk
0:00:05.4]} 59... Kd4 {[%clk 0:00:04.8]} 60. Kh3 {[%clk 0:00:05.9]} 60... Ke3
{[%clk 0:00:05.4]} 61. Kg2 {[%clk 0:00:06.2]} 61... f3+ {[%clk 0:00:06.2]} 62.
Kf1 {[%clk 0:00:06.3]} 62... f4 {[%clk 0:00:07.1]} 63. Bc4 {[%clk 0:00:06]}
63... Ra8 {[%clk 0:00:07.9]} 64. Bd3 {[%clk 0:00:06.5]} 64... Ra7 {[%clk
0:00:08.7]} 65. Bc4 {[%clk 0:00:06.9]} 65... f2 {[%clk 0:00:09.2]} 66. Bd3
{[%clk 0:00:07.8]} 66... Kf3 {[%clk 0:00:09.7]} 67. Be2+ {[%clk 0:00:08]} 67...
Kg3 {[%clk 0:00:10.6]} 68. Bd3 {[%clk 0:00:08.7]} 68... f3 {[%clk 0:00:11.1]}
69. Bc4 {[%clk 0:00:09.6]} 69... Rh7 {[%clk 0:00:10.4]} 70. Bd5 {[%clk
0:00:03.9]} 70... Rh1# {[%clk 0:00:11.3]} 0-1

[Event "Early-Titled-Tuesday-Blitz-June-18-2024"]
[Site "Chess.com"]
[Date "2024.06.18"]
[Round "9"]
[White "vladislavkovalev"]
[Black "Yan_Dyomin2010"]
[Result "1-0"]
[WhiteElo "2869"]
[BlackElo "2675"]
[TimeControl "180+1"]
[EndTime "9:47:51 PDT"]
[Termination "vladislavkovalev won by resignation"]

1. e4 {[%clk 0:03:00.9]} 1... c5 {[%clk 0:02:59.9]} 2. Nf3 {[%clk 0:03:01]} 2...
Nc6 {[%clk 0:02:59.8]} 3. Bb5 {[%clk 0:02:59.9]} 3... Nf6 {[%clk 0:02:59.7]} 4.
e5 {[%clk 0:02:48.2]} 4... Nd5 {[%clk 0:02:59.2]} 5. Nc3 {[%clk 0:02:46.3]} 5...
Nc7 {[%clk 0:02:59.2]} 6. Bxc6 {[%clk 0:02:46.6]} 6... dxc6 {[%clk 0:03:00.1]}
7. h3 {[%clk 0:02:46.9]} 7... h6 {[%clk 0:02:58.9]} 8. d3 {[%clk 0:02:46]} 8...
g5 {[%clk 0:02:59]} 9. Be3 {[%clk 0:02:43.2]} 9... b6 {[%clk 0:02:58.7]} 10. Qe2
{[%clk 0:02:37.8]} 10... Bf5 {[%clk 0:02:58]} 11. O-O-O {[%clk 0:02:37.6]} 11...
Nd5 {[%clk 0:02:55.2]} 12. Bd2 {[%clk 0:02:27]} 12... Bg7 {[%clk 0:02:54.1]} 13.
g4 {[%clk 0:02:26.3]} 13... Be6 {[%clk 0:02:52.6]} 14. Ne4 {[%clk 0:02:16]}
14... a5 {[%clk 0:02:45.3]} 15. a3 {[%clk 0:02:05.2]} 15... Qc7 {[%clk
0:02:34.8]} 16. Ng3 {[%clk 0:01:55.7]} 16... b5 {[%clk 0:02:31.5]} 17. Nf5
{[%clk 0:01:46.6]} 17... Bf8 {[%clk 0:02:30.2]} 18. Be3 {[%clk 0:01:26.6]} 18...
Bxf5 {[%clk 0:02:24.7]} 19. gxf5 {[%clk 0:01:26.6]} 19... e6 {[%clk 0:02:25.2]}
20. c4 {[%clk 0:00:58.7]} 20... Nxe3 {[%clk 0:02:23.2]} 21. Qxe3 {[%clk
0:00:59.2]} 21... exf5 {[%clk 0:02:12.3]} 22. d4 {[%clk 0:00:57.8]} 22... cxd4
{[%clk 0:02:06.7]} 23. Nxd4 {[%clk 0:00:56]} 23... Bc5 {[%clk 0:02:02.5]} 24.
Qf3 {[%clk 0:00:56.2]} 24... Bxd4 {[%clk 0:02:01.8]} 25. Rxd4 {[%clk 0:00:57.1]}
25... O-O {[%clk 0:01:31.5]} 26. Qxf5 {[%clk 0:00:56.6]} 26... Rad8 {[%clk
0:01:25.7]} 27. Rxd8 {[%clk 0:00:42.1]} 27... Qxd8 {[%clk 0:01:25.3]} 28. h4
{[%clk 0:00:40.3]} 28... Qd4 {[%clk 0:01:02.4]} 29. hxg5 {[%clk 0:00:36.6]}
29... Qxc4+ {[%clk 0:01:02.8]} 30. Kb1 {[%clk 0:00:36.8]} 30... Rd8 {[%clk
0:01:03.3]} 31. g6 {[%clk 0:00:23.3]} 31... Qd3+ {[%clk 0:00:27.3]} 32. Qxd3
{[%clk 0:00:23.1]} 32... Rxd3 {[%clk 0:00:28.2]} 33. gxf7+ {[%clk 0:00:23.7]}
33... Kxf7 {[%clk 0:00:29.1]} 34. Rxh6 {[%clk 0:00:24.3]} 34... c5 {[%clk
0:00:26.9]} 35. Rf6+ {[%clk 0:00:21.8]} 35... Ke7 {[%clk 0:00:26.7]} 36. Kc2
{[%clk 0:00:21.7]} 36... c4 {[%clk 0:00:23.2]} 37. Rb6 {[%clk 0:00:18.4]} 37...
Rb3 {[%clk 0:00:18.7]} 38. f4 {[%clk 0:00:16.1]} 38... b4 {[%clk 0:00:19.1]} 39.
axb4 {[%clk 0:00:14.7]} 39... axb4 {[%clk 0:00:20]} 40. f5 {[%clk 0:00:13.9]}
40... Re3 {[%clk 0:00:19.4]} 41. Rxb4 {[%clk 0:00:06.6]} 41... Rxe5 {[%clk
0:00:19.2]} 42. Rxc4 {[%clk 0:00:07]} 42... Rxf5 {[%clk 0:00:19.9]} 43. Kb3
{[%clk 0:00:07.7]} 43... Kd6 {[%clk 0:00:20.2]} 44. Ka4 {[%clk 0:00:06.8]} 44...
Rf7 {[%clk 0:00:15]} 45. b4 {[%clk 0:00:06.8]} 45... Rb7 {[%clk 0:00:14.3]} 46.
Ka5 {[%clk 0:00:07]} 46... Kd5 {[%clk 0:00:13.2]} 47. Rc1 {[%clk 0:00:06.6]}
47... Kd6 {[%clk 0:00:13.4]} 48. b5 {[%clk 0:00:07.1]} 48... Rb8 {[%clk
0:00:08.6]} 49. Ka6 {[%clk 0:00:07]} 49... Rg8 {[%clk 0:00:08]} 50. b6 {[%clk
0:00:07]} 50... Rg2 {[%clk 0:00:07.9]} 51. b7 {[%clk 0:00:06.8]} 51... Ra2+
{[%clk 0:00:08.5]} 52. Kb6 {[%clk 0:00:07.5]} 52... Rb2+ {[%clk 0:00:09.1]} 53.
Ka7 {[%clk 0:00:08.2]} 53... Ra2+ {[%clk 0:00:09.8]} 54. Kb8 {[%clk 0:00:08.8]}
54... Kd7 {[%clk 0:00:10.7]} 55. Rd1+ {[%clk 0:00:08.7]} 55... Ke7 {[%clk
0:00:10.5]} 56. Rd4 {[%clk 0:00:08.5]} 56... Ra1 {[%clk 0:00:08.9]} 57. Kc7
{[%clk 0:00:08.3]} 57... Rc1+ {[%clk 0:00:09.3]} 58. Kb6 {[%clk 0:00:08.8]}
58... Rb1+ {[%clk 0:00:09.8]} 59. Kc6 {[%clk 0:00:09.5]} 59... Rc1+ {[%clk
0:00:10.1]} 60. Kb5 {[%clk 0:00:09.5]} 60... Rc8 {[%clk 0:00:07.5]} 61. bxc8=Q
{[%clk 0:00:08.9]} 1-0

[Event "Early-Titled-Tuesday-Blitz-June-18-2024"]
[Site "Chess.com"]
[Date "2024.06.18"]
[Round "9"]
[White "TheBigBoss04"]
[Black "Lestofante90"]
[Result "1-0"]
[WhiteElo "2831"]
[BlackElo "2955"]
[TimeControl "180+1"]
[EndTime "9:47:53 PDT"]
[Termination "TheBigBoss04 won by resignation"]

1. Nf3 {[%clk 0:02:56.1]} 1... d5 {[%clk 0:02:56.2]} 2. e3 {[%clk 0:02:54.4]}
2... Nf6 {[%clk 0:02:55.8]} 3. c4 {[%clk 0:02:52.9]} 3... c6 {[%clk 0:02:53.3]}
4. b3 {[%clk 0:02:51.7]} 4... g6 {[%clk 0:02:53.4]} 5. Bb2 {[%clk 0:02:50.8]}
5... Bg7 {[%clk 0:02:53.7]} 6. Nc3 {[%clk 0:02:49.8]} 6... O-O {[%clk
0:02:53.8]} 7. Be2 {[%clk 0:02:48.6]} 7... Re8 {[%clk 0:02:53]} 8. d4 {[%clk
0:02:47.9]} 8... e6 {[%clk 0:02:48.3]} 9. O-O {[%clk 0:02:44.6]} 9... Nbd7
{[%clk 0:02:47.6]} 10. Rc1 {[%clk 0:02:39.3]} 10... b6 {[%clk 0:02:47.2]} 11.
Bd3 {[%clk 0:02:30.1]} 11... Bb7 {[%clk 0:02:42.9]} 12. Qe2 {[%clk 0:02:27.9]}
12... c5 {[%clk 0:02:38.7]} 13. cxd5 {[%clk 0:02:27.2]} 13... Nxd5 {[%clk
0:02:38.4]} 14. Nxd5 {[%clk 0:02:27]} 14... Bxd5 {[%clk 0:02:38.3]} 15. Rfd1
{[%clk 0:02:21]} 15... Bxf3 {[%clk 0:02:29.6]} 16. Qxf3 {[%clk 0:02:18.5]} 16...
cxd4 {[%clk 0:02:29.1]} 17. Bb5 {[%clk 0:02:15.6]} 17... a6 {[%clk 0:01:41.6]}
18. Bxd7 {[%clk 0:01:36.3]} 18... Qxd7 {[%clk 0:01:41.7]} 19. Bxd4 {[%clk
0:01:36.3]} 19... Bxd4 {[%clk 0:01:41.4]} 20. Rxd4 {[%clk 0:01:36.5]} 20... Qe7
{[%clk 0:01:38.5]} 21. g3 {[%clk 0:01:17.3]} 21... Rac8 {[%clk 0:01:35.5]} 22.
Rc6 {[%clk 0:01:15.8]} 22... e5 {[%clk 0:00:33.5]} 23. Rdd6 {[%clk 0:01:07.2]}
23... e4 {[%clk 0:00:33.6]} 24. Qf6 {[%clk 0:01:04.8]} 24... Rxc6 {[%clk
0:00:32.3]} 25. Rxc6 {[%clk 0:01:02.9]} 25... Qxf6 {[%clk 0:00:29.1]} 26. Rxf6
{[%clk 0:01:03.8]} 26... Rb8 {[%clk 0:00:29.4]} 27. g4 {[%clk 0:00:59]} 27... h6
{[%clk 0:00:25]} 28. h4 {[%clk 0:00:57.8]} 28... a5 {[%clk 0:00:23.1]} 29. a4
{[%clk 0:00:53.9]} 29... b5 {[%clk 0:00:21.7]} 30. Ra6 {[%clk 0:00:52.2]} 30...
bxa4 {[%clk 0:00:20.5]} 31. bxa4 {[%clk 0:00:52.6]} 31... Rb2 {[%clk 0:00:14.1]}
32. Rxa5 {[%clk 0:00:51.7]} 32... Ra2 {[%clk 0:00:14.2]} 33. Kg2 {[%clk
0:00:50.9]} 33... Kg7 {[%clk 0:00:08.1]} 34. Kg3 {[%clk 0:00:50.7]} 34... Kf6
{[%clk 0:00:08]} 35. g5+ {[%clk 0:00:46.6]} 35... hxg5 {[%clk 0:00:08.9]} 36.
hxg5+ {[%clk 0:00:46.8]} 36... Ke6 {[%clk 0:00:09.1]} 37. Ra7 {[%clk 0:00:46]}
37... Kf5 {[%clk 0:00:02.9]} 38. Rxf7+ {[%clk 0:00:35.6]} 38... Kxg5 {[%clk
0:00:03.3]} 39. Ra7 {[%clk 0:00:35.9]} 39... Kf5 {[%clk 0:00:03.3]} 40. a5
{[%clk 0:00:33.7]} 40... Kg5 {[%clk 0:00:02.1]} 41. Ra8 {[%clk 0:00:30.8]} 41...
Ra1 {[%clk 0:00:02.3]} 42. a6 {[%clk 0:00:30.3]} 42... Rg1+ {[%clk 0:00:02.4]}
43. Kh2 {[%clk 0:00:30.5]} 43... Ra1 {[%clk 0:00:03.3]} 44. Kh3 {[%clk
0:00:23.4]} 44... Rh1+ {[%clk 0:00:02.2]} 45. Kg3 {[%clk 0:00:23.4]} 45... Ra1
{[%clk 0:00:03.1]} 46. Kg2 {[%clk 0:00:24.1]} 46... Kg4 {[%clk 0:00:02.6]} 47.
a7 {[%clk 0:00:15.6]} 47... g5 {[%clk 0:00:03]} 48. Re8 {[%clk 0:00:09.3]} 48...
Rxa7 {[%clk 0:00:03]} 49. Rxe4+ {[%clk 0:00:09.8]} 49... Kf5 {[%clk 0:00:03.7]}
50. Rb4 {[%clk 0:00:10.3]} 50... Ra5 {[%clk 0:00:03.9]} 51. Kg3 {[%clk
0:00:10.3]} 51... Ra2 {[%clk 0:00:04.3]} 52. f3 {[%clk 0:00:09.1]} 52... Ra1
{[%clk 0:00:04.7]} 53. Rb6 {[%clk 0:00:07.8]} 53... Re1 {[%clk 0:00:03.4]} 54.
e4+ {[%clk 0:00:07.4]} 54... Ke5 {[%clk 0:00:03.4]} 55. Rg6 {[%clk 0:00:07.8]}
55... g4 {[%clk 0:00:01.3]} 56. Rxg4 {[%clk 0:00:07.3]} 56... Rg1+ {[%clk
0:00:01.5]} 57. Kh4 {[%clk 0:00:06.6]} 57... Rf1 {[%clk 0:00:01.6]} 58. Rg5+
{[%clk 0:00:04.2]} 58... Kf6 {[%clk 0:00:02]} 59. Rf5+ {[%clk 0:00:04.6]} 59...
Kg6 {[%clk 0:00:02.9]} 60. Kg4 {[%clk 0:00:05.2]} 60... Rg1+ {[%clk 0:00:03.2]}
61. Kf4 {[%clk 0:00:05.7]} 61... Rd1 {[%clk 0:00:04.1]} 62. Rc5 {[%clk 0:00:06]}
62... Ra1 {[%clk 0:00:04.8]} 63. Rc6+ {[%clk 0:00:06.4]} 63... Kh5 {[%clk
0:00:05.2]} 64. Kf5 {[%clk 0:00:06.9]} 64... Rf1 {[%clk 0:00:04.9]} 65. f4
{[%clk 0:00:07.4]} 65... Ra1 {[%clk 0:00:05.4]} 66. e5 {[%clk 0:00:07.9]} 66...
Ra8 {[%clk 0:00:04.5]} 67. e6 {[%clk 0:00:07.9]} 67... Rf8+ {[%clk 0:00:05.1]}
68. Ke5 {[%clk 0:00:08.4]} 68... Kg4 {[%clk 0:00:06]} 69. e7 {[%clk 0:00:08.7]}
69... Rf5+ {[%clk 0:00:05.9]} 70. Ke6 {[%clk 0:00:09.1]} 70... Rxf4 {[%clk
0:00:06.3]} 71. e8=Q {[%clk 0:00:09.5]} 1-0

[Event "Early-Titled-Tuesday-Blitz-June-18-2024"]
[Site "Chess.com"]
[Date "2024.06.18"]
[Round "9"]
[White "GHANDEEVAM2003"]
[Black "Adar_07"]
[Result "1/2-1/2"]
[WhiteElo "2981"]
[BlackElo "2808"]
[TimeControl "180+1"]
[EndTime "9:47:54 PDT"]
[Termination "Game drawn - insufficient material"]

1. Nf3 {[%clk 0:03:00.9]} 1... Nf6 {[%clk 0:02:58]} 2. g3 {[%clk 0:02:58.2]}
2... d5 {[%clk 0:02:57.8]} 3. Bg2 {[%clk 0:02:57.5]} 3... c6 {[%clk 0:02:57.8]}
4. O-O {[%clk 0:02:56.9]} 4... Bg4 {[%clk 0:02:56]} 5. b3 {[%clk 0:02:56.6]}
5... e6 {[%clk 0:02:56.1]} 6. Bb2 {[%clk 0:02:56.7]} 6... h5 {[%clk 0:02:56.1]}
7. c4 {[%clk 0:02:55.8]} 7... Nbd7 {[%clk 0:02:54.1]} 8. cxd5 {[%clk 0:02:52.8]}
8... cxd5 {[%clk 0:02:52.8]} 9. d3 {[%clk 0:02:50.7]} 9... Bd6 {[%clk
0:02:52.1]} 10. Nbd2 {[%clk 0:02:50.7]} 10... h4 {[%clk 0:02:31.7]} 11. Nxh4
{[%clk 0:02:48.8]} 11... Rxh4 {[%clk 0:02:31.4]} 12. gxh4 {[%clk 0:02:49.7]}
12... Nh5 {[%clk 0:02:32.3]} 13. Qe1 {[%clk 0:02:47.8]} 13... Qxh4 {[%clk
0:02:07.8]} 14. f4 {[%clk 0:02:47.8]} 14... Qxe1 {[%clk 0:02:04]} 15. Raxe1
{[%clk 0:02:48.7]} 15... Nxf4 {[%clk 0:02:04.6]} 16. Nf3 {[%clk 0:02:47.2]}
16... O-O-O {[%clk 0:02:01.9]} 17. Bc1 {[%clk 0:02:40.7]} 17... Rh8 {[%clk
0:01:55.4]} 18. Bxf4 {[%clk 0:02:40.1]} 18... Bxf4 {[%clk 0:01:56.3]} 19. e3
{[%clk 0:02:40.7]} 19... Bd6 {[%clk 0:01:51.3]} 20. Rf2 {[%clk 0:02:36.1]} 20...
Nc5 {[%clk 0:01:45.9]} 21. Rd2 {[%clk 0:02:35.5]} 21... Kd7 {[%clk 0:01:42.5]}
22. Rf1 {[%clk 0:02:34]} 22... Ke7 {[%clk 0:01:41.8]} 23. h3 {[%clk 0:02:29]}
23... Bxh3 {[%clk 0:01:41.4]} 24. Bxh3 {[%clk 0:02:29.9]} 24... Rxh3 {[%clk
0:01:40.6]} 25. Rg2 {[%clk 0:02:30.6]} 25... Rg3 {[%clk 0:01:27.8]} 26. Rxg3
{[%clk 0:02:25]} 26... Bxg3 {[%clk 0:01:28.7]} 27. Rd1 {[%clk 0:02:25.2]} 27...
f6 {[%clk 0:01:24.9]} 28. b4 {[%clk 0:02:20.8]} 28... Na4 {[%clk 0:01:24.7]} 29.
Rc1 {[%clk 0:02:20.1]} 29... Bd6 {[%clk 0:01:17.3]} 30. Kf2 {[%clk 0:02:17]}
30... g5 {[%clk 0:01:15.5]} 31. Rh1 {[%clk 0:02:10.6]} 31... Bxb4 {[%clk
0:01:04.1]} 32. Rh7+ {[%clk 0:02:09.8]} 32... Kd6 {[%clk 0:01:02.5]} 33. Rxb7
{[%clk 0:02:10.7]} 33... Bc5 {[%clk 0:01:02.1]} 34. Rf7 {[%clk 0:02:02.3]} 34...
g4 {[%clk 0:01:02.2]} 35. Nh4 {[%clk 0:01:59.3]} 35... f5 {[%clk 0:00:56.4]} 36.
d4 {[%clk 0:01:59.3]} 36... Bb6 {[%clk 0:00:56.2]} 37. Ng6 {[%clk 0:01:59.3]}
37... Kc6 {[%clk 0:00:39.7]} 38. Rf6 {[%clk 0:01:59.2]} 38... Nc3 {[%clk
0:00:33.6]} 39. Rxe6+ {[%clk 0:01:58.9]} 39... Kb5 {[%clk 0:00:33.1]} 40. Re5
{[%clk 0:01:55.6]} 40... Kc4 {[%clk 0:00:32.9]} 41. Rxf5 {[%clk 0:01:54]} 41...
Nxa2 {[%clk 0:00:30.9]} 42. Ne5+ {[%clk 0:01:53.8]} 42... Kb4 {[%clk 0:00:28.8]}
43. Nxg4 {[%clk 0:01:54.7]} 43... Nc3 {[%clk 0:00:28.6]} 44. Ke1 {[%clk
0:01:50.7]} 44... a5 {[%clk 0:00:26.7]} 45. Kd2 {[%clk 0:01:50]} 45... a4 {[%clk
0:00:27.2]} 46. Ne5 {[%clk 0:01:36.9]} 46... Kb3 {[%clk 0:00:25.1]} 47. Rf8
{[%clk 0:01:27.9]} 47... Bc7 {[%clk 0:00:19.1]} 48. Nd3 {[%clk 0:01:25.8]} 48...
Bd6 {[%clk 0:00:16.4]} 49. Nc5+ {[%clk 0:01:21.4]} 49... Bxc5 {[%clk 0:00:16.1]}
50. dxc5 {[%clk 0:01:22.3]} 50... Ne4+ {[%clk 0:00:16.4]} 51. Kc1 {[%clk
0:01:20.8]} 51... Nxc5 {[%clk 0:00:17.3]} 52. Rb8+ {[%clk 0:01:16.7]} 52... Kc4
{[%clk 0:00:16.8]} 53. Kc2 {[%clk 0:01:16.2]} 53... d4 {[%clk 0:00:16.4]} 54.
exd4 {[%clk 0:01:15.7]} 54... Kxd4 {[%clk 0:00:17.3]} 55. Rb4+ {[%clk 0:01:16]}
55... Kd5 {[%clk 0:00:17.9]} 56. Kc3 {[%clk 0:01:16.4]} 56... Ne4+ {[%clk
0:00:18.1]} 57. Kb2 {[%clk 0:01:15.4]} 57... Nc5 {[%clk 0:00:19]} 58. Ka3 {[%clk
0:01:16.1]} 58... Kc6 {[%clk 0:00:18.4]} 59. Rh4 {[%clk 0:01:16.6]} 59... Kb5
{[%clk 0:00:19.3]} 60. Rh5 {[%clk 0:01:17.1]} 60... Kc4 {[%clk 0:00:19.7]} 61.
Rg5 {[%clk 0:01:12.2]} 61... Kb5 {[%clk 0:00:19.4]} 62. Rg4 {[%clk 0:01:12.9]}
62... Ka5 {[%clk 0:00:12.5]} 63. Rb4 {[%clk 0:01:13.3]} 63... Ka6 {[%clk
0:00:12.1]} 64. Rb1 {[%clk 0:01:10.4]} 64... Ka5 {[%clk 0:00:12.2]} 65. Rb8
{[%clk 0:01:11]} 65... Ka6 {[%clk 0:00:12.3]} 66. Kb4 {[%clk 0:01:11.4]} 66...
Nd7 {[%clk 0:00:11]} 67. Rd8 {[%clk 0:01:05.7]} 67... Nb6 {[%clk 0:00:10.2]} 68.
Rd6 {[%clk 0:01:06.3]} 68... a3 {[%clk 0:00:09]} 69. Kxa3 {[%clk 0:01:01]} 69...
Kb5 {[%clk 0:00:09]} 70. Kb3 {[%clk 0:01:01.5]} 70... Kc5 {[%clk 0:00:07.8]} 71.
Rh6 {[%clk 0:01:02.2]} 71... Nd5 {[%clk 0:00:08.2]} 72. Rh4 {[%clk 0:01:02.9]}
72... Nb6 {[%clk 0:00:08]} 73. Kc3 {[%clk 0:01:03.4]} 73... Nd5+ {[%clk
0:00:08.2]} 74. Kd3 {[%clk 0:01:04.1]} 74... Nb4+ {[%clk 0:00:08.4]} 75. Ke4
{[%clk 0:01:04.8]} 75... Nc6 {[%clk 0:00:07.8]} 76. Rh1 {[%clk 0:01:04.3]} 76...
Kd6 {[%clk 0:00:06.3]} 77. Rc1 {[%clk 0:01:05.2]} 77... Ne7 {[%clk 0:00:06.5]}
78. Rd1+ {[%clk 0:01:02.8]} 78... Ke6 {[%clk 0:00:06.9]} 79. Kd4 {[%clk
0:01:00.6]} 79... Nf5+ {[%clk 0:00:07.1]} 80. Kc5 {[%clk 0:01:01.5]} 80... Ke5
{[%clk 0:00:07.3]} 81. Re1+ {[%clk 0:01:02.2]} 81... Kf4 {[%clk 0:00:07.9]} 82.
Kc4 {[%clk 0:01:02.4]} 82... Ne3+ {[%clk 0:00:07.7]} 83. Kd3 {[%clk 0:01:03.1]}
83... Nf5 {[%clk 0:00:08.2]} 84. Re8 {[%clk 0:01:01.1]} 84... Kg5 {[%clk
0:00:07.8]} 85. Rf8 {[%clk 0:00:59.8]} 85... Kf4 {[%clk 0:00:07.5]} 86. Rf6
{[%clk 0:00:56.8]} 86... Ke5 {[%clk 0:00:07.8]} 87. Rf7 {[%clk 0:00:57.1]} 87...
Ke6 {[%clk 0:00:07.3]} 88. Rf8 {[%clk 0:00:57.5]} 88... Ke5 {[%clk 0:00:07.8]}
89. Rxf5+ {[%clk 0:00:57.7]} 89... Kxf5 {[%clk 0:00:08.2]} 1/2-1/2